bitfinex-derivatives/quotes_BTCF0:USTF0_20251228
["timestamp","ask_amount","ask_price","bid_price","bid_amount"]
[1766951105424,0.02439977,87642.0,87636.0,0.00017]
[1766951105722,0.02439977,87641.0,87636.0,0.00017]
[1766951105929,0.02439977,87640.0,87636.0,0.00017]
[1766951106109,0.09708,87652.0,87636.0,0.00017]
[1766951106309,0.02439936,87651.0,87636.0,0.00017]
[1766951106516,0.02439936,87650.0,87636.0,0.00017]
[1766951106725,0.02439936,87649.0,87636.0,0.00017]
[1766951106927,0.02439936,87648.0,87636.0,0.00017]
[1766951107224,0.02439936,87647.0,87636.0,0.00017]
[1766951107424,0.02439936,87646.0,87636.0,0.00017]
[1766951107618,0.02439936,87645.0,87636.0,0.00017]
[1766951107817,0.02439936,87644.0,87636.0,0.00017]
[1766951108018,0.02439936,87643.0,87636.0,0.00017]
[1766951108219,0.02439936,87642.0,87636.0,0.00017]
[1766951108426,0.02439936,87641.0,87633.0,0.011419]
[1766951108724,0.02439936,87640.0,87626.0,0.01142]
[1766951109028,0.02439936,87639.0,87623.0,0.09708]
[1766951109215,0.02439936,87638.0,87628.0,0.0114197]
[1766951109413,0.02439936,87637.0,87628.0,0.0114197]
[1766951109624,0.00017109,87640.0,87628.0,0.0114197]
[1766951109815,0.02439819,87639.0,87628.0,0.0114197]
[1766951110011,0.02439819,87638.0,87628.0,0.0114197]
[1766951110226,0.02439819,87637.0,87628.0,0.0114197]
[1766951110430,0.00017109,87640.0,87628.0,0.0114197]
[1766951110616,0.02439774,87639.0,87628.0,0.0114197]
[1766951110811,0.02439774,87638.0,87628.0,0.0114197]
[1766951111117,0.02439774,87637.0,87628.0,0.0114197]
[1766951111316,0.02439678,87636.0,87628.0,0.0114197]
[1766951111618,0.00017109,87640.0,87628.0,0.0114197]
[1766951111819,0.02439667,87639.0,87628.0,0.0114197]
[1766951112025,0.02439667,87638.0,87624.0,0.0114202]
[1766951112223,0.02439667,87637.0,87624.0,0.0114202]
[1766951112426,0.02439667,87636.0,87627.0,0.0114199]
[1766951112626,0.00017109,87640.0,87627.0,0.0114199]
[1766951112627,0.02439667,87635.0,87627.0,0.0114199]
[1766951112819,0.00017109,87640.0,87627.0,0.0114199]
[1766951113020,0.02439397,87639.0,87627.0,0.0114199]
[1766951113319,0.02439397,87638.0,87627.0,0.0114199]
[1766951113519,0.02439397,87637.0,87627.0,0.0114199]
[1766951113734,0.02439397,87636.0,87629.0,0.0114196]
[1766951114025,7e-08,87635.0,87629.0,0.0114196]
[1766951114224,0.00017109,87640.0,87629.0,0.0114196]
[1766951123231,0.06156963,87658.0,87623.0,0.09708]
[1766951123431,0.1542,87657.0,87641.0,0.011418]
[1766951123730,0.1542,87656.0,87641.0,0.011418]
[1766951125938,0.02428073,87655.0,87641.0,0.011418]
[1766951126138,0.02428073,87654.0,87641.0,0.011418]
[1766951126439,0.02428073,87653.0,87641.0,0.011418]
[1766951126639,0.02428073,87652.0,87641.0,0.011418]
[1766951126839,0.02428073,87651.0,87641.0,0.011418]
[1766951127035,0.1542,87656.0,87641.0,0.011418]
[1766951127036,0.02428073,87650.0,87641.0,0.011418]
[1766951127337,0.02428073,87649.0,87641.0,0.011418]
[1766951127531,0.02428073,87648.0,87641.0,0.011418]
[1766951127731,0.02428073,87647.0,87641.0,0.011418]
[1766951127941,3e-08,87646.0,87641.0,0.011418]
[1766951128139,0.1542,87656.0,87641.0,0.011418]
[1766951129138,0.1542,87656.0,87643.0,0.0114177]
[1766951130044,0.1542,87656.0,87640.0,0.01158929]
[1766951131846,0.1542,87656.0,87640.0,0.12635174]
[1766951132034,0.1542,87656.0,87640.0,0.01158929]
[1766951138947,0.06156963,87654.0,87640.0,0.01158929]
[1766951139351,0.06156963,87651.0,87632.0,0.09708]
[1766951139549,0.05712,87650.0,87632.0,0.09708]
[1766951140245,0.05712,87650.0,87639.0,0.0114183]
[1766951145856,0.05712,87650.0,87641.0,0.011418]
[1766951148057,0.11868963,87650.0,87641.0,0.011418]
[1766951149058,0.05712,87650.0,87641.0,0.011418]
[1766951152775,0.05712,87650.0,87632.0,0.09708]
[1766951153073,0.17188245,87650.0,87632.0,0.09708]
[1766951154177,0.17188245,87650.0,87637.0,0.0114186]
[1766951155272,0.05712,87650.0,87637.0,0.0114186]
[1766951157171,0.17188245,87650.0,87637.0,0.0114186]
[1766951158673,0.06156963,87655.0,87640.0,0.2295249]
[1766951158874,0.05712,87656.0,87640.0,0.11476245]
[1766951159175,9e-08,87661.0,87654.0,0.0114163]
[1766951159368,9e-08,87661.0,87640.0,0.11476245]
[1766951159369,0.05712,87661.0,87650.0,0.11476245]
[1766951159567,0.05712,87661.0,87642.0,0.09708]
[1766951159767,0.05712,87661.0,87649.0,0.011417]
[1766951160469,0.11476245,87660.0,87646.0,0.00017109]
[1766951163671,0.05712,87661.0,87646.0,0.00017109]
[1766951178784,0.05712,87661.0,87649.0,0.011417]
[1766951178984,0.05712,87661.0,87646.0,0.00017109]
[1766951179184,0.05712,87661.0,87652.0,0.0114166]
[1766951179587,0.05712,87661.0,87654.0,0.0114163]
[1766951179990,0.05712,87661.0,87652.0,0.0114166]
[1766951183396,0.00017109,87664.0,87652.0,0.0114166]
[1766951188793,0.06162066,87661.0,87646.0,0.00017109]
[1766951188991,0.06162066,87660.0,87646.0,0.00017109]
[1766951189202,0.06162066,87661.0,87652.0,0.0114166]
[1766951198809,0.00017109,87664.0,87652.0,0.0114166]
[1766951201611,0.00017109,87664.0,87646.0,0.09721109]
[1766951201812,0.05712,87678.0,87666.0,0.0114148]
[1766951206114,0.00017109,87681.0,87666.0,0.0114148]
[1766951207218,0.00017109,87681.0,87663.0,0.00017109]
[1766951207419,0.00228096,87683.0,87663.0,0.00017109]
[1766951207618,0.00228096,87683.0,87669.0,0.0114145]
[1766951217233,0.00228096,87683.0,87666.0,0.0114149]
[1766951217534,0.00228096,87683.0,87668.0,0.0114145]
[1766951220237,0.00228096,87683.0,87665.0,0.011415]
[1766951220432,0.00228096,87683.0,87663.0,0.01158629]
[1766951220641,0.0114128,87682.0,87663.0,0.00017109]
[1766951222129,0.0114132,87680.0,87663.0,0.00017109]
[1766951223337,0.0114132,87680.0,87658.0,0.09704]
[1766951223537,0.0114132,87680.0,87659.0,0.0114158]
[1766951224335,0.0114132,87680.0,87661.0,0.00017109]
[1766951225239,0.0114133,87679.0,87661.0,0.00017109]
[1766951225436,0.09704,87678.0,87661.0,9e-08]
[1766951226434,0.011414,87673.0,87661.0,9e-08]
[1766951226638,0.05712,87672.0,87661.0,9e-08]
[1766951232657,0.114688,87671.0,87661.0,9e-08]
[1766951251968,0.09704,87670.0,87661.0,9e-08]
[1766951312818,0.06145322,87672.0,87661.0,9e-08]
[1766951313023,0.15416,87671.0,87661.0,9e-08]
[1766951313420,0.06145322,87672.0,87661.0,9e-08]
[1766951313617,0.15416,87671.0,87661.0,9e-08]
[1766951318927,0.21561322,87671.0,87658.0,0.0114158]
[1766951323030,0.06145322,87671.0,87658.0,0.0114158]
[1766951323335,0.15416,87670.0,87658.0,0.0114158]
[1766951323635,0.06145322,87669.0,87658.0,0.0114158]
[1766951324225,0.05712,87668.0,87658.0,0.0114158]
[1766951330033,0.06145322,87673.0,87656.0,0.00017109]
[1766951330238,0.15416,87672.0,87664.0,0.0114151]
[1766951330541,0.05712,87671.0,87664.0,0.0114151]
[1766951330736,0.01312212,87677.0,87664.0,0.0114151]
[1766951331041,0.15416,87676.0,87664.0,0.0114151]
[1766951331242,0.15416,87676.0,87661.0,0.0114155]
[1766951340149,0.21561322,87676.0,87661.0,0.0114155]
[1766951340449,0.06145322,87677.0,87661.0,0.0114155]
[1766951340647,0.15416,87676.0,87661.0,0.0114155]
[1766951341150,0.21561322,87676.0,87661.0,0.0114155]
[1766951341963,0.21561322,87676.0,87656.0,0.00017109]
[1766951342163,0.21561322,87676.0,87660.0,0.0114155]
[1766951347371,0.21561322,87676.0,87656.0,0.00017109]
[1766951348170,0.21561322,87676.0,87660.0,0.0114155]
[1766951351573,0.15416,87675.0,87660.0,0.0114155]
[1766951352473,0.15416,87675.0,87657.0,0.011416]
[1766951356077,0.15416,87675.0,87656.0,0.00017109]
[1766951356874,0.15416,87675.0,87657.0,0.011416]
[1766951357380,0.21561322,87675.0,87657.0,0.011416]
[1766951357580,0.15416,87675.0,87657.0,0.011416]
[1766951364485,0.15416,87675.0,87656.0,0.00017109]
[1766951365386,0.15416,87675.0,87656.0,0.01158719]
[1766951367984,0.21561322,87675.0,87656.0,0.01158719]
[1766951368982,0.06145322,87671.0,87656.0,0.01158719]
[1766951369388,0.06145322,87670.0,87656.0,0.01158719]
[1766951369587,0.05712,87669.0,87656.0,0.01158719]
[1766951389401,0.05712,87669.0,87646.0,0.09704]
[1766951389798,0.05712,87669.0,87650.0,0.11466915]
[1766951390707,0.00017109,87668.0,87650.0,0.11466915]
[1766951391307,0.00017109,87668.0,87651.0,0.0114167]
[1766951392794,0.00017109,87668.0,87653.0,0.0114164]
[1766951393700,0.05712,87667.0,87655.0,0.0114162]
[1766951395006,0.00017109,87668.0,87655.0,0.0114162]
[1766951395210,0.05712,87667.0,87655.0,0.0114162]
[1766951401326,0.05712,87667.0,87652.0,0.0114167]
[1766951402424,0.05712,87667.0,87656.0,0.0114161]
[1766951402630,0.05712,87667.0,87653.0,0.0114165]
[1766951415534,0.00017109,87668.0,87653.0,0.0114165]
[1766951415732,0.05729109,87668.0,87653.0,0.0114165]
[1766951416433,0.05712,87667.0,87653.0,0.0114165]
[1766951417135,0.05729109,87668.0,87653.0,0.0114165]
[1766951417530,0.00017109,87668.0,87653.0,0.0114165]
[1766951417731,0.05712,87667.0,87653.0,0.0114165]
[1766951417931,0.00017109,87668.0,87653.0,0.0114165]
[1766951418133,0.05729109,87668.0,87653.0,0.0114165]
[1766951418736,0.05729109,87668.0,87655.0,0.0114162]
[1766951419439,0.05712,87667.0,87655.0,0.0114162]
[1766951419744,0.05712,87667.0,87657.0,0.011416]
[1766951420643,0.00017109,87668.0,87657.0,0.011416]
[1766951421045,0.05712,87667.0,87657.0,0.011416]
[1766951428253,0.05712,87667.0,87646.0,0.09704]
[1766951428555,0.05712,87667.0,87655.0,0.0114162]
[1766951432353,0.05712,87667.0,87657.0,0.0114159]
[1766951446662,0.05712,87666.0,87657.0,0.0114159]
[1766951449157,0.00017109,87668.0,87657.0,0.0114159]
[1766951449365,0.05712,87667.0,87657.0,0.0114159]
[1766951449662,0.05712,87666.0,87657.0,0.0114159]
[1766951451567,0.05712,87665.0,87657.0,0.0114159]
[1766951454274,0.00017109,87668.0,87657.0,0.0114159]
[1766951454766,0.05712,87667.0,87657.0,0.0114159]
[1766951455171,0.00017109,87668.0,87657.0,0.0114159]
[1766951455371,0.05712,87666.0,87654.0,0.0114164]
[1766951456970,0.00017109,87668.0,87654.0,0.0114164]
[1766951457170,0.05712,87667.0,87654.0,0.0114164]
[1766951462677,0.06162431,87668.0,87654.0,0.0114164]
[1766951462879,0.05712,87667.0,87654.0,0.0114164]
[1766951463777,0.05712,87667.0,87646.0,0.09704]
[1766951464172,0.05712,87667.0,87647.0,0.11407646]
[1766951465381,0.05712,87667.0,87652.0,0.0114166]
[1766951467681,0.05712,87667.0,87654.0,0.0114163]
[1766951477288,0.00017109,87668.0,87654.0,0.0114163]
[1766951477484,0.05712,87667.0,87654.0,0.0114163]
[1766951477886,0.00017109,87668.0,87654.0,0.0114163]
[1766951478084,0.05712,87667.0,87654.0,0.0114163]
[1766951478284,0.00017109,87668.0,87654.0,0.0114163]
[1766951478483,0.05712,87667.0,87654.0,0.0114163]
[1766951478694,0.00017109,87668.0,87654.0,0.0114163]
[1766951478993,0.05712,87667.0,87654.0,0.0114163]
[1766951479579,0.00017109,87668.0,87654.0,0.0114163]
[1766951479787,0.05712,87667.0,87654.0,0.0114163]
[1766951481494,0.05712,87667.0,87656.0,0.011416]
[1766951485397,0.05712,87667.0,87650.0,0.11468777]
[1766951485595,0.05712,87667.0,87646.0,0.09704]
[1766951485796,0.05712,87667.0,87650.0,0.11468777]
[1766951487303,0.05712,87667.0,87652.0,0.0114166]
[1766951492699,0.05712,87667.0,87654.0,0.0114163]
[1766951501711,0.05712,87667.0,87646.0,0.09704]
[1766951501913,0.0685347,87667.0,87648.0,0.0114172]
[1766951502513,0.02400187,87666.0,87648.0,0.0114172]
[1766951502706,0.02400187,87665.0,87648.0,0.0114172]
[1766951503017,0.02400187,87664.0,87648.0,0.0114172]
[1766951503205,0.02400187,87663.0,87648.0,0.0114172]
[1766951503402,0.02400187,87662.0,87648.0,0.0114172]
[1766951503597,0.02400187,87661.0,87648.0,0.0114172]
[1766951503813,0.02400187,87660.0,87648.0,0.0114172]
[1766951504109,0.02400187,87659.0,87648.0,0.0114172]
[1766951504310,0.02400187,87658.0,87648.0,0.0114172]
[1766951504508,0.02400187,87657.0,87648.0,0.0114172]
[1766951504712,0.02400187,87656.0,87646.0,0.09704]
[1766951504913,0.02400187,87655.0,87646.0,0.09704]
[1766951505208,0.02400187,87654.0,87648.0,0.0114172]
[1766951505508,0.0685347,87667.0,87648.0,0.0114172]
[1766951505814,0.05712,87667.0,87648.0,0.0114172]
[1766951506911,0.22937554,87660.0,87644.0,0.07536]
[1766951507102,0.11468777,87654.0,87623.0,0.09704]
[1766951507413,0.00017109,87648.0,87630.0,0.0114195]
[1766951507603,0.05729109,87648.0,87630.0,0.0114195]
[1766951507808,0.05729109,87648.0,87633.0,0.0114191]
[1766951510013,0.15433109,87648.0,87629.0,0.0114196]
[1766951510213,0.16574829,87648.0,87626.0,0.0114201]
[1766951510412,0.16574829,87648.0,87626.0,0.12552259]
[1766951510606,0.16574829,87648.0,87626.0,0.0114201]
[1766951511413,0.11468777,87640.0,87626.0,0.0114201]
[1766951511605,0.17180777,87640.0,87626.0,0.0114201]
[1766951519316,0.02392861,87639.0,87626.0,0.0114201]
[1766951519515,0.02392861,87638.0,87626.0,0.0114201]
[1766951519715,0.17180777,87640.0,87626.0,0.0114201]
[1766951520014,0.02392865,87639.0,87626.0,0.0114201]
[1766951520210,0.02392865,87638.0,87626.0,0.0114201]
[1766951520418,0.17180777,87640.0,87626.0,0.0114201]
[1766951520614,0.02392754,87639.0,87626.0,0.0114201]
[1766951520815,0.02392754,87638.0,87626.0,0.0114201]
[1766951521010,0.17180777,87640.0,87626.0,0.0114201]
[1766951521212,0.0239275,87639.0,87626.0,0.0114201]
[1766951521518,0.0239275,87638.0,87626.0,0.0114201]
[1766951521724,0.17180777,87640.0,87626.0,0.0114201]
[1766951521911,0.02392559,87639.0,87626.0,0.0114201]
[1766951522112,0.02392559,87638.0,87612.0,0.09708]
[1766951522417,0.11468777,87630.0,87615.0,0.0114214]
[1766951522619,0.05712,87629.0,87615.0,0.0114214]
[1766951523118,0.05712,87629.0,87618.0,0.011421]
[1766951523320,0.05712,87629.0,87621.0,0.0114207]
[1766951526518,0.05712,87629.0,87617.0,0.0114212]
[1766951532738,0.05712,87629.0,87612.0,0.05712]
[1766951534323,0.02394167,87628.0,87615.0,0.0114214]
[1766951534521,0.05712,87629.0,87615.0,0.0114214]
[1766951534722,0.0239424,87628.0,87615.0,0.0114214]
[1766951534925,0.05712,87629.0,87615.0,0.0114214]
[1766951535126,0.0239424,87628.0,87615.0,0.0114214]
[1766951535326,0.0239424,87627.0,87615.0,0.0114214]
[1766951535526,0.05712,87629.0,87615.0,0.0114214]
[1766951535727,0.02395591,87628.0,87615.0,0.0114214]
[1766951535931,0.02395591,87627.0,87615.0,0.0114214]
[1766951536129,0.05712,87629.0,87615.0,0.0114214]
[1766951536327,0.02397652,87628.0,87615.0,0.0114214]
[1766951536532,0.02397652,87627.0,87615.0,0.0114214]
[1766951536727,0.02397652,87626.0,87615.0,0.0114214]
[1766951536942,0.02397652,87625.0,87615.0,0.0114214]
[1766951537145,0.05712,87629.0,87615.0,0.0114214]
[1766951537448,0.0239764,87628.0,87615.0,0.0114214]
[1766951537647,0.0239764,87627.0,87615.0,0.0114214]
[1766951537847,0.0239764,87626.0,87615.0,0.0114214]
[1766951538146,0.0239764,87625.0,87615.0,0.0114214]
[1766951538445,0.0239764,87624.0,87615.0,0.0114214]
[1766951538646,0.05712,87629.0,87615.0,0.0114214]
[1766951538845,0.02397921,87628.0,87615.0,0.0114214]
[1766951539046,0.02397921,87627.0,87615.0,0.0114214]
[1766951539351,0.02397921,87626.0,87615.0,0.0114214]
[1766951539647,0.02397921,87625.0,87615.0,0.0114214]
[1766951539847,0.02397921,87624.0,87615.0,0.0114214]
[1766951540040,0.02397921,87623.0,87615.0,0.0114214]
[1766951540347,0.02397921,87622.0,87615.0,0.0114214]
[1766951540644,0.05712,87629.0,87615.0,0.0114214]
[1766951541049,0.05712,87629.0,87612.0,0.05712]
[1766951542349,0.05712,87629.0,87615.0,0.0114214]
[1766951543641,0.05712,87629.0,87612.0,0.05712]
[1766951544348,0.05712,87629.0,87617.0,0.0114211]
[1766951560258,0.05712,87629.0,87619.0,0.0114209]
[1766951563061,0.05712,87629.0,87619.0,0.011228]
[1766951564461,0.05712,87629.0,87612.0,0.05712]
[1766951565157,0.05712,87629.0,87619.0,0.0114209]
[1766951570563,0.05712,87629.0,87616.0,0.0114214]
[1766951571369,0.00017119,87631.0,87618.0,0.011421]
[1766951571667,0.05712,87628.0,87618.0,0.011421]
[1766951581567,0.05712,87628.0,87602.0,0.04107408]
[1766951581765,0.05712,87628.0,87603.0,0.1542]
[1766951581766,0.02411586,87627.0,87603.0,0.1542]
[1766951582065,0.02411586,87626.0,87607.0,0.10226718]
[1766951582266,0.02411586,87625.0,87603.0,0.1542]
[1766951582471,0.02411586,87624.0,87604.0,0.1141357]
[1766951582669,0.02411586,87623.0,87604.0,0.1141357]
[1766951582970,0.02411586,87622.0,87604.0,0.1141357]
[1766951583171,0.02411586,87621.0,87612.0,0.0114218]
[1766951583371,0.02411586,87620.0,87612.0,0.0114218]
[1766951583571,0.02411586,87619.0,87612.0,0.0114218]
[1766951583872,0.05712,87628.0,87612.0,0.0114218]
[1766951583873,6e-08,87618.0,87612.0,0.0114218]
[1766951584072,0.05712,87628.0,87612.0,0.0114218]
[1766951584569,0.05712,87628.0,87617.0,0.0114212]
[1766951584869,0.00017119,87631.0,87623.0,0.0114203]
[1766951585371,0.05712,87630.0,87623.0,0.0114203]
[1766951585569,0.05712,87630.0,87610.0,0.11479096]
[1766951585774,0.05712,87630.0,87620.0,0.0114208]
[1766951587577,0.00017119,87631.0,87620.0,0.0114208]
[1766951590877,0.00017119,87631.0,87622.0,0.0114205]
[1766951595682,0.0240073,87630.0,87622.0,0.0114205]
[1766951595882,0.0240073,87629.0,87622.0,0.0114205]
[1766951596084,0.0240073,87628.0,87622.0,0.0114205]
[1766951596276,0.00017119,87631.0,87622.0,0.0114205]
[1766951599087,0.06145322,87629.0,87620.0,0.00391605]
[1766951599287,0.06145322,87629.0,87622.0,0.0114205]
[1766951599978,0.06145322,87630.0,87622.0,0.0114205]
[1766951609104,0.00017119,87631.0,87622.0,0.0114205]
[1766951613203,0.00017119,87631.0,87624.0,0.0114202]
[1766951619004,0.00017119,87631.0,87620.0,0.00391605]
[1766951620207,0.00017119,87631.0,87622.0,0.0114205]
[1766951629509,1.19e-06,87631.0,87622.0,0.0114205]
[1766951629703,0.05712119,87631.0,87622.0,0.0114205]
[1766951632109,1.19e-06,87631.0,87622.0,0.0114205]
[1766951632309,0.05712119,87631.0,87622.0,0.0114205]
[1766951634505,1.19e-06,87631.0,87622.0,0.0114205]
[1766951634711,0.05712119,87631.0,87622.0,0.0114205]
[1766951635910,1.19e-06,87631.0,87622.0,0.0114205]
[1766951636110,0.05712119,87631.0,87622.0,0.0114205]
[1766951638311,1.19e-06,87631.0,87622.0,0.0114205]
[1766951638613,0.05712,87630.0,87622.0,0.0114205]
[1766951639206,0.05712,87630.0,87620.0,0.1147695]
[1766951639912,0.05712,87630.0,87619.0,0.0114209]
[1766951640601,1.19e-06,87631.0,87619.0,0.0114209]
[1766951640918,0.05712119,87631.0,87620.0,0.1147695]
[1766951646600,0.05712119,87631.0,87619.0,0.0114209]
[1766951648915,1.19e-06,87631.0,87619.0,0.0114209]
[1766951649110,0.11857322,87630.0,87619.0,0.0114209]
[1766951650704,0.11857322,87630.0,87620.0,0.1147695]
[1766951651310,0.11857322,87630.0,87619.0,0.0114209]
[1766951652014,0.06145322,87630.0,87619.0,0.0114209]
[1766951652313,0.11857322,87630.0,87619.0,0.0114209]
[1766951653317,0.06145322,87630.0,87619.0,0.0114209]
[1766951653616,0.11857322,87630.0,87619.0,0.0114209]
[1766951654516,0.06145322,87630.0,87621.0,0.0114206]
[1766951654817,0.11857322,87630.0,87618.0,0.00017119]
[1766951655217,0.11857322,87630.0,87621.0,0.0114206]
[1766951656012,0.06145322,87630.0,87621.0,0.0114206]
[1766951656209,0.11857322,87630.0,87621.0,0.0114206]
[1766951659221,1.19e-06,87631.0,87621.0,0.0114206]
[1766951659514,0.05712,87630.0,87621.0,0.0114206]
[1766951666526,0.05712,87630.0,87618.0,0.00017119]
[1766951682442,0.05712,87630.0,87619.0,0.011421]
[1766951689245,0.11857322,87630.0,87619.0,0.011421]
[1766951692746,0.11857322,87630.0,87618.0,0.00017119]
[1766951694253,0.11857322,87630.0,87619.0,0.011421]
[1766951699253,0.05712,87630.0,87619.0,0.011421]
[1766951702056,0.05712,87630.0,87618.0,0.00017119]
[1766951702356,0.05712,87630.0,87618.0,0.01159219]
[1766951702956,0.05712,87630.0,87618.0,1.19e-06]
[1766951703252,0.05712,87630.0,87613.0,0.11654279]
[1766951703458,0.05712,87630.0,87613.0,0.03639279]
[1766951709855,0.05712,87630.0,87616.0,0.0114213]
[1766951717676,0.05712,87630.0,87610.0,0.1542]
[1766951719175,0.05712,87630.0,87614.0,0.0114215]
[1766951722273,0.05712,87630.0,87610.0,0.1542]
[1766951722476,0.17190967,87630.0,87610.0,0.26898967]
[1766951722878,0.05712,87630.0,87610.0,0.26898967]
[1766951723178,0.17190967,87630.0,87616.0,0.0114213]
[1766951726381,0.17190967,87630.0,87610.0,0.26898967]
[1766951727184,0.17190967,87630.0,87616.0,0.0114213]
[1766951739307,0.06145322,87629.0,87616.0,0.0114213]
[1766951741910,0.06153211,87629.0,87616.0,0.0114213]
[1766951746614,0.06153211,87629.0,87617.0,0.0114212]
[1766951749312,0.17190967,87630.0,87617.0,0.0114212]
[1766951750212,0.06153211,87629.0,87615.0,0.0114214]
[1766951752220,0.23344178,87630.0,87615.0,0.0114214]
[1766951755230,0.11865211,87630.0,87615.0,0.0114214]
[1766951757724,0.23344178,87630.0,87615.0,0.0114214]
[1766951757924,0.11865211,87630.0,87615.0,0.0114214]
[1766951759929,0.23344178,87630.0,87615.0,0.0114214]
[1766951760530,0.23344178,87630.0,87610.0,0.26898967]
[1766951761123,0.23344178,87630.0,87610.0,0.1542]
[1766951761328,0.11865211,87630.0,87610.0,0.26898967]
[1766951762333,0.11865211,87630.0,87615.0,0.0114214]
[1766951765749,0.23344178,87630.0,87615.0,0.0114214]
[1766951770250,0.11865211,87630.0,87615.0,0.0114214]
[1766951772754,0.23344178,87630.0,87610.0,0.09708]
[1766951772953,0.11478967,87620.0,87603.0,0.09708]
[1766951773145,0.05712,87619.0,87600.0,0.1542]
[1766951773346,0.05712,87619.0,87603.0,0.011423]
[1766951774446,0.0114212,87618.0,87600.0,0.1656234]
[1766951774653,0.12621197,87610.0,87589.0,0.0114248]
[1766951774853,0.0114228,87606.0,87583.0,0.0114255]
[1766951775058,0.11478967,87603.0,87587.0,0.05716]
[1766951775458,0.0114228,87606.0,87587.0,0.05716]
[1766951775754,0.05716,87609.0,87587.0,0.05716]
[1766951775960,0.0114225,87608.0,87587.0,0.05716]
[1766951776154,0.0114225,87608.0,87587.0,0.068585]
[1766951781259,0.11478967,87603.0,87587.0,0.068585]
[1766951781457,0.17194967,87603.0,87587.0,0.068585]
[1766951781959,0.11478967,87600.0,87587.0,0.068585]
[1766951782658,0.05716,87603.0,87587.0,0.068585]
[1766951782854,8.942e-05,87599.0,87587.0,0.068585]
[1766951786154,8.942e-05,87599.0,87587.0,0.05716]
[1766951790861,8.942e-05,87599.0,87588.0,0.011425]
[1766951793965,8.942e-05,87599.0,87587.0,0.05716]
[1766951796463,0.02393421,87598.0,87587.0,0.05716]
[1766951796665,8.942e-05,87599.0,87587.0,0.05716]
[1766951796965,0.02393421,87598.0,87587.0,0.05716]
[1766951797164,8.942e-05,87599.0,87587.0,0.05716]
[1766951797368,0.02393746,87598.0,87587.0,0.05716]
[1766951797558,8.942e-05,87599.0,87587.0,0.05716]
[1766951797752,0.023938,87598.0,87587.0,0.05716]
[1766951798061,8.942e-05,87599.0,87587.0,0.05716]
[1766951798265,0.02394195,87598.0,87589.0,0.0114248]
[1766951798460,0.02394195,87597.0,87589.0,0.0114248]
[1766951798666,8.942e-05,87599.0,87587.0,0.05716]
[1766951798968,0.02394196,87598.0,87587.0,0.05716]
[1766951799163,0.02394196,87597.0,87587.0,0.05716]
[1766951799365,8.942e-05,87599.0,87587.0,0.05716]
[1766951799564,0.02394687,87598.0,87587.0,0.05716]
[1766951799866,0.02394687,87597.0,87590.0,0.0114247]
[1766951800057,8.942e-05,87599.0,87590.0,0.0114247]
[1766951800258,0.02394687,87598.0,87590.0,0.0114247]
[1766951800466,0.02394687,87597.0,87590.0,0.0114247]
[1766951800668,0.02394687,87596.0,87590.0,0.0114247]
[1766951800966,8.942e-05,87599.0,87590.0,0.0114247]
[1766951801165,0.02395273,87598.0,87590.0,0.0114247]
[1766951801366,0.02395273,87597.0,87590.0,0.0114247]
[1766951801566,3e-08,87596.0,87587.0,0.05716]
[1766951801764,8.942e-05,87599.0,87587.0,0.05716]
[1766951802565,8.942e-05,87599.0,87592.0,0.0114244]
[1766951808167,8.942e-05,87599.0,87589.0,0.0114249]
[1766951812974,0.15428,87603.0,87589.0,0.0114249]
[1766951814380,0.15428,87603.0,87591.0,0.0114245]
[1766951817674,0.15428,87603.0,87587.0,0.05716]
[1766951817675,0.15428,87603.0,87593.0,0.0114243]
[1766951817867,0.15428,87603.0,87590.0,0.0114247]
[1766951818767,0.15428,87603.0,87592.0,0.0114244]
[1766951820171,0.05716,87602.0,87587.0,0.05716]
[1766951820376,0.05716,87606.0,87587.0,0.05716]
[1766951820576,0.05716,87606.0,87599.0,0.0114235]
[1766951820778,0.05716,87606.0,87588.0,0.0131314]
[1766951820967,0.05716,87606.0,87598.0,0.0114237]
[1766951821893,0.11869211,87607.0,87598.0,0.0114237]
[1766951822675,0.06153211,87607.0,87598.0,0.0114237]
[1766951822876,0.11869211,87607.0,87598.0,0.0114237]
[1766951823981,0.06153211,87607.0,87598.0,0.0114237]
[1766951824183,0.11869211,87607.0,87598.0,0.0114237]
[1766951825282,0.06153211,87607.0,87596.0,0.0114239]
[1766951825481,0.05716,87606.0,87596.0,0.0114239]
[1766951826081,0.06153211,87607.0,87596.0,0.0114239]
[1766951826283,0.05716,87607.0,87596.0,0.0114239]
[1766951826477,0.05716,87607.0,87598.0,0.0114236]
[1766951826677,0.11869211,87607.0,87598.0,0.0114236]
[1766951827582,0.06153211,87607.0,87598.0,0.0114236]
[1766951827880,0.11869211,87607.0,87598.0,0.0114236]
[1766951828176,0.11869211,87607.0,87589.0,0.01313185]
[1766951828388,0.05716,87613.0,87590.0,0.21198985]
[1766951828568,0.05716,87614.0,87590.0,0.32614184]
[1766951828773,0.05716,87614.0,87590.0,0.21198985]
[1766951828973,0.05716,87614.0,87591.0,0.11415785]
[1766951829393,0.00017119,87611.0,87594.0,0.00017119]
[1766951830281,0.00017119,87611.0,87602.0,0.0114231]
[1766951830784,0.00017119,87611.0,87594.0,0.00017119]
[1766951831581,0.00017119,87611.0,87600.0,0.0114234]
[1766951835582,0.00017119,87611.0,87603.0,0.0114231]
[1766951840487,0.00017119,87611.0,87600.0,0.0114235]
[1766951842690,0.00017119,87611.0,87594.0,0.00017119]
[1766951845792,0.11483281,87610.0,87594.0,0.00017119]
[1766951846395,0.00017119,87611.0,87594.0,0.00017119]
[1766951847592,0.00017119,87611.0,87595.0,0.011424]
[1766951852197,0.00017119,87611.0,87594.0,0.00017119]
[1766951854293,0.11483281,87610.0,87594.0,0.00017119]
[1766951854999,0.00017119,87611.0,87594.0,0.00017119]
[1766951857299,0.11483281,87610.0,87594.0,0.00017119]
[1766951857699,0.11483281,87610.0,87594.0,0.01159539]
[1766951859308,0.00017119,87611.0,87594.0,0.01159539]
[1766951860895,0.0114226,87607.0,87594.0,0.00017119]
[1766951864998,0.17199281,87610.0,87594.0,0.00017119]
[1766951865399,0.0114223,87609.0,87594.0,0.00017119]
[1766951870902,0.06152822,87605.0,87594.0,0.00017119]
[1766951879319,0.06152822,87608.0,87594.0,0.00017119]
[1766951881119,0.0114226,87607.0,87594.0,0.00017119]
[1766951883922,0.0114226,87607.0,87588.0,0.0114249]
[1766951884422,0.07295082,87607.0,87587.0,0.15428]
[1766951886324,0.06152822,87606.0,87587.0,0.15428]
[1766951890238,0.06152822,87605.0,87587.0,0.15428]
[1766951891035,0.0114226,87607.0,87587.0,0.15428]
[1766951896939,0.0114226,87607.0,87587.0,0.1657051]
[1766951900950,0.06152822,87605.0,87587.0,0.1657051]
[1766951901146,0.05716,87604.0,87587.0,0.1657051]